Cogmind - Beta 14 @@@ ROGUE MODE // 2024.11.09 @ 20:23:37 Player: jimmyl Result: Destroyed by AG-88851 with Assembled Focal Cannon Performance ------------- Evolutions (4) 2000 Regions Visited (10) 2000 Robots Destroyed (111) 555 Value Destroyed (3594) 3594 Prototype IDs (8) 160 Alien Tech Used (0) 0 Bonus (1919) 1919 TOTAL SCORE: 10228 Bonus ------- High Alert Combat Kills 154 Follower Combat Kills 265 Destroyed Z-Imprinter 1000 Triggered Deep Caves Wall 500 Cogmind --------- Core Integrity 0/850 Matter 37/300 Energy 60/100 System Corruption 8% Temperature Cool (12) Movement Core (50) Location -6/Deep Caves Parts ------- > --- POWER (1) -------- (None) > --- PROPULSION (3) --- (None) > --- UTILITY (8) ------ Weapon Cycler (fused) > --- WEAPON (3) ------- (None) > --- INVENTORY (5) ---- Light Angular Momentum Engine Shock Rifle Minigun Peak State ------------ > --- POWER ------------ Enhanced Nuclear Core > --- PROPULSION ------- Medium Treads Medium Treads Armored Wheel > --- UTILITY ---------- Huge Storage Unit Advanced Sensor Array Improved Signal Interpreter Advanced Targeting Computer Weapon Cycler Hardened Medium Armor Plating Reactive Plating Reactive Plating > --- WEAPON ----------- Improved Spread Laser Rocket Launcher Mini Grenade Launcher > --- INVENTORY -------- Enhanced Nuclear Core Light Angular Momentum Engine Improved Cooling System Signal Interpreter Improved Targeting Computer Hardened Medium Armor Plating Improved EM Shotgun Improved EM Shotgun Shock Rifle Lightning Gun Lightning Gun Heavy Riot Gun EM Pulse Cannon Advanced Beam Cannon Heavy Ion Cannon Minigun Gauss Rifle Makeshift Shrapnel Gun Slug Cannon Rocket Launcher Scatter Rocket Array CR-A16's Pointy Stick [Rating: 56] Favorites ----------- Power Enhanced Nuclear Core Engine Cooled Ion Engine Power Core Enhanced Nuclear Core Propulsion Medium Treads Treads Medium Treads Leg Aluminum Leg Wheel Wheel Utility Huge Storage Unit Device Weapon Cycler Storage Huge Storage Unit Processor Improved Signal Interpreter Protection Reactive Plating Weapon Minigun Energy Gun Improved Spread Laser Energy Cannon EM Pulse Cannon Ballistic Gun Minigun Launcher Mini Grenade Launcher Special Weapon Plasma Cutter Build | -11 -10 -10 -9 -8 -7 -6 -6 -6 -6 -6 ------- Run | Yrd Mat Min Mat Mat Fac Fac Low Low Zio Dee Slots Evolved 8 | . . . 2 2 2 2 . . . . Power . | . . . . . . . . . . . Propulsion 1 | . . . . 1 . . . . . . Utility 6 | . . . 2 1 1 2 . . . . Weapon 1 | . . . . . 1 . . . . . Parts Attached 95 | . 8 1 12 12 21 7 9 3 9 13 Power 8 | . 1 . 3 . 2 1 . . . 1 Engine 4 | . 1 . 3 . . . . . . . Core 4 | . . . . . 2 1 . . . 1 Reactor . | . . . . . . . . . . . Propulsion 14 | . 2 1 1 2 3 2 1 . 1 1 Treads 8 | . 2 . 1 . 2 . 1 . 1 1 Leg . | . . . . . . . . . . . Wheel 6 | . . 1 . 2 1 2 . . . . Hover . | . . . . . . . . . . . Flight . | . . . . . . . . . . . Utility 20 | . 3 . 4 3 4 1 2 . 1 2 Device 8 | . 1 . 2 1 2 . 1 . . 1 Storage 3 | . 2 . 1 . . . . . . . Processor 3 | . . . 1 . 2 . . . . . Hackware . | . . . . . . . . . . . Protection 6 | . . . . 2 . 1 1 . 1 1 Artifact . | . . . . . . . . . . . Weapon 53 | . 2 . 4 7 12 3 6 3 7 9 Energy Gun 9 | . . . 1 . 1 . 1 . 3 3 Energy Cannon 5 | . . . . 1 . . . 1 . 3 Ballistic Gun 23 | . 2 . 3 5 7 2 2 1 1 . Ballistic Cannon . | . . . . . . . . . . . Launcher 15 | . . . . 1 4 1 3 1 2 3 Special Weapon 1 | . . . . . . . . . 1 . Impact Weapon . | . . . . . . . . . . . Slashing Weapon . | . . . . . . . . . . . Piercing Weapon . | . . . . . . . . . . . Special Melee Weapon . | . . . . . . . . . . . Unidentified Prototypes 6 | . . . 3 . 2 1 . . . . Parts Lost 39 | . 1 1 2 2 2 5 3 . . 23 Power 5 | . 1 . 1 . . 1 . . . 2 Propulsion 10 | . . 1 . 1 1 2 1 . . 4 Utility 11 | . . . . 1 . 1 1 . . 8 Weapon 13 | . . . 1 . 1 1 1 . . 9 Highest Loss Streak 10 | . 1 1 1 1 1 3 1 . . 10 To Critical Strikes . | . . . . . . . . . . . Average Slot Usage (%) 85 | . 77 99 92 99 97 86 81 86 82 61 Engine 2 | . 5 14 10 9 . . . . . . Core 4 | . . . . . 6 6 6 6 6 5 Treads 7 | . 25 25 7 9 7 6 6 6 6 5 Wheel 8 | . . 1 11 17 12 12 6 6 6 . Device 10 | . . . 10 8 13 7 6 13 13 12 Storage 9 | . 14 28 22 18 8 6 6 6 6 5 Processor 11 | . . . 8 9 15 13 13 13 13 12 Protection 7 | . . . . 8 7 11 12 13 13 3 Energy Gun 2 | . 24 . . . . . 1 1 4 2 Energy Cannon 1 | . . . . . . . . 4 . 7 Ballistic Gun 13 | . 3 28 21 17 22 19 17 13 3 . Launcher 1 | . . . . . . . . . 6 2 Peak Build Rating 56 | . 10 10 17 26 44 48 50 51 56 56 Average Rating 36 | . 5 9 14 21 40 44 44 50 49 37 On Entrance 29 | 6 6 10 10 17 26 44 45 50 51 56 Naked Turns . | . . . . . . . . . . . Heaviest Build 127 | 11 21 21 97 107 110 117 119 123 127 127 Greatest Support 40 | 20 40 40 20 32 26 22 22 12 12 28 Greatest Overweight (x) 32 | . . 1 6 6 10 9 9 10 10 32 Average Overweight (x) 5 | . . . 4 3 5 5 8 9 8 6 Largest Inventory Capacity 25 | . 10 10 25 25 25 25 25 25 25 25 Average Capacity 23 | . 9 10 24 25 25 25 25 25 25 24 Most Carried 25 | . 10 10 21 25 25 23 21 22 25 22 Average Carried 20 | . 6 9 14 21 24 21 20 20 24 16 Final Capacity 25 | 8 10 10 25 25 25 25 25 25 25 5 Final Carried 25 | 6 10 10 21 25 23 21 19 22 22 3 Class Distribution -------------------- 38% | Mutant 32% | Tank 25% | Skirmisher 3% | Gunner Dominant Class ---------------- Mutant | -10/Materials Mutant | -10/Mines Mutant | -9/Materials Mutant | -8/Materials Skirmisher | -7/Factory Tank | -6/Factory Tank | -6/Lower Caves Tank | -6/Lower Caves Tank | -6/Zion Mutant | -6/Deep Caves Resources | -11 -10 -10 -9 -8 -7 -6 -6 -6 -6 -6 ----------- Run | Yrd Mat Min Mat Mat Fac Fac Low Low Zio Dee Matter Collected 3012 | 200 70 37 663 355 977 102 192 154 55 207 Remotely . | . . . . . . . . . . . Salvage Created 4249 | . 346 11 905 537 1202 168 115 262 . 703 Parts 213 | . 28 . 56 31 58 9 5 11 . 15 Haulers Intercepted 6 | . . . 2 3 1 . . . . . Recyclers Shooed 5 | . . . 3 1 1 . . . . . Parts Field Recycled . | . . . . . . . . . . . Retrieved Matter . | . . . . . . . . . . . Parts Self-Destructed 16 | . . . . . . . 8 8 . . Prevented 1 | . . . . . . . 1 . . . Kills | -11 -10 -10 -9 -8 -7 -6 -6 -6 -6 -6 ------- Run | Yrd Mat Min Mat Mat Fac Fac Low Low Zio Dee Combat Hostiles Destroyed 119 | . 10 1 15 10 25 3 3 4 . 48 Guns 43 | . 10 1 15 5 8 3 1 . . . Cannons 7 | . . . . 1 . . . 1 . 5 AOE 66 | . . . . 4 17 . 2 3 . 40 Classes Destroyed 18 | . 4 1 3 2 5 . 1 . . 2 Worker 5 | . 1 . 2 1 1 . . . . . Builder 1 | . . . . . 1 . . . . . Hauler 6 | . . . 2 3 1 . . . . . Recycler 8 | . . . 4 1 3 . . . . . Minesweeper 1 | . . . . . . . 1 . . . Mechanic 1 | . . . . . 1 . . . . . Operator 1 | . . . . . 1 . . . . . Watcher 13 | . 1 . 5 2 5 . . . . . Swarmer 24 | . 3 . 9 4 3 . 2 3 . . Grunt 31 | . 7 . 3 3 15 2 1 . . . Brawler 3 | . . . . . 3 . . . . . Duelist 1 | . . . . 1 . . . . . . Sentry 6 | . . . 3 1 1 1 . . . . Hunter 1 | . . . . 1 . . . . . . Programmer 4 | . . . . . 3 . . 1 . . Z-Technician 4 | . . . . . . . . . . 4 Z-Light 2 | . . . . . . . . . . 2 Packrat 2 | . . . . . . . . 2 . . Assembled 43 | . . 1 . . . . . . . 42 Golem 3 | . . . . . . . . . . 3 Best Kill Streak 36 | . 2 1 7 8 11 2 2 3 . 36 Combat Bots Only 36 | . 2 1 3 4 11 2 2 3 . 36 Max Kills in Single Turn 28 | . 1 1 1 3 4 1 1 2 . 28 Gunslinging . | . . . . . . . . . . . Exploded 28 | . . . . 2 4 . 1 2 . 28 Melee . | . . . . . . . . . . . Uniques/NPCs Destroyed 1 | . . . . . . . . . . 1 Z-Imprinter (-6/Deep Caves) Combat | -11 -10 -10 -9 -8 -7 -6 -6 -6 -6 -6 -------- Run | Yrd Mat Min Mat Mat Fac Fac Low Low Zio Dee Hostile Shots Fired 472 | . 58 7 32 41 114 22 21 19 . 158 Missed 158 | . 13 . 4 12 55 10 3 9 . 52 Damage Taken 6374 | . 501 77 276 361 877 247 414 166 . 3455 Core 1094 | . 54 . 51 47 51 14 35 . . 842 Absorbed by Shields 9 | . . . . . 9 . . . . . Redirected to Shielding 10 | . . . . 10 . . . . . . Ignored by Resistances 101 | . . . . 18 27 7 18 26 . 5 Regen/Repaired (Parts) 208 | . . . . . . . . . 208 . Core Remaining (%) 89 | 100 . 78 87 91 92 . . . . . Volleys Fired 309 | . 39 8 48 42 68 6 11 11 . 76 Largest 3 | . 2 2 2 2 3 3 3 3 . 3 Hottest 173 | . 90 46 46 79 80 78 108 118 . 173 Shots Fired 603 | . 77 16 96 80 167 18 24 24 . 101 Gun 474 | . 77 16 96 72 146 18 20 19 . 10 Cannon 70 | . . . . 4 . . . 2 . 64 Launcher 59 | . . . . 4 21 . 4 3 . 27 Special . | . . . . . . . . . . . Kinetic 385 | . 4 16 96 72 146 18 15 18 . . Thermal 109 | . 73 . . . . . . 2 . 34 Explosive 59 | . . . . 4 21 . 4 3 . 27 Electromagnetic 50 | . . . . 4 . . 5 1 . 40 Robot Hit Streak 21 | . 8 8 9 21 13 8 10 7 . 9 Robot Miss Streak 12 | . 6 4 3 8 3 1 3 2 . 12 Penetration Max . | . . . . . . . . . . . Secondary Targets 3 | . 1 . 1 . . 1 . . . . Max Gunslinging Chain 1 | . 1 . 1 . . 1 . . . . Shots Hit Robots 382 | . 43 8 73 61 96 13 18 13 . 57 Core Hits 329 | . 21 2 48 35 82 10 8 9 . 114 Critical Kills 2 | . . . 1 . . 1 . . . . Critical Parts Destroyed 2 | . . . 1 1 . . . . . . Critical Strikes 7 | . 2 . 2 1 . 1 . . . 1 Burn 2 | . 2 . . . . . . . . . Destroy 4 | . . . 2 1 . 1 . . . . Corrupt 1 | . . . . . . . . . . 1 Melee Attacks . | . . . . . . . . . . . Impact . | . . . . . . . . . . . Slashing . | . . . . . . . . . . . Piercing . | . . . . . . . . . . . Sneak Attacks . | . . . . . . . . . . . Combat Hostiles . | . . . . . . . . . . . Follow-up Attacks . | . . . . . . . . . . . Damage Inflicted 13167 | . 541 120 1098 1447 4598 258 493 443 . 4169 Guns 5070 | . 541 120 1096 904 1567 258 265 178 . 141 Cannons 949 | . . . . 95 . . . 70 . 784 Explosions 7134 | . . . . 448 3031 . 219 195 . 3241 Melee . | . . . . . . . . . . . Ramming 14 | . . . 2 . . . 9 . . 3 Kinetic 4337 | . 66 120 1096 904 1567 258 172 154 . . Thermal 946 | . 475 . . . . . 32 70 . 369 Explosive 7025 | . . . . 448 3031 . 187 195 . 3164 Electromagnetic 845 | . . . . 95 . . 93 24 . 633 Impact . | . . . . . . . . . . . Slashing . | . . . . . . . . . . . Piercing . | . . . . . . . . . . . Highest Corruption 8 | . . . . . 2 . 1 1 1 8 Average Corruption 1 | . . . . . 2 . 1 1 1 8 Corruption Purged . | . . . . . . . . . . . Corruption Blocked . | . . . . . . . . . . . Effects 20 | . . . . . 2 . 8 6 2 2 Message Errors 4 | . . . . . 2 . 1 . 1 . Matter Fused 5 | . . . . . . . 3 2 . . Energy Discharges 4 | . . . . . . . 2 . 1 1 Parts Fused 1 | . . . . . . . . . . 1 Data Loss (minor) 1 | . . . . . . . . 1 . . Misfires 3 | . . . . . . . 1 2 . . Alerts 1 | . . . . . . . . 1 . . Weapon Failures 1 | . . . . . . . 1 . . . Overload Shots . | . . . . . . . . . . . Overflow Damage 257 | . . . . 5 120 . 17 . . 115 Projectiles 89 | . . . . . . . . . . 89 Explosions 168 | . . . . 5 120 . 17 . . 26 Melee . | . . . . . . . . . . . Knockbacks . | . . . . . . . . . . . Impact . | . . . . . . . . . . . Kinetic . | . . . . . . . . . . . Secondary . | . . . . . . . . . . . Self-Inflicted Damage 198 | . . . . . 21 . 36 49 . 92 Shots 6 | . . . . . 1 . 1 1 . 3 Rammed 4 | . 1 . 1 . . . 1 . . 1 Targets Rammed 5 | . 2 . 1 . . . 1 . . 1 Kicked . | . . . . . . . . . . . Crushed 1 | . 1 . . . . . . . . . Highest Temperature 548 | . 222 88 . . 239 116 156 141 . 548 Average Temperature 82 | . 60 46 . . 61 41 58 57 . 148 Received Heat Transfer 1778 | . 246 140 36 117 327 57 90 . . 765 Effects 14 | . 2 . . . . . . . . 12 Shutdowns 2 | . . . . . . . . . . 2 Energy Bleed 2 | . . . . . . . . . . 2 Interference 4 | . 2 . . . . . . . . 2 Matter Decay 2 | . . . . . . . . . . 2 Damage (minor) 2 | . . . . . . . . . . 2 Damage (major) 1 | . . . . . . . . . . 1 Damage (core) 1 | . . . . . . . . . . 1 Siege Activations . | . . . . . . . . . . . Robots Corrupted 3 | . . . . . . . . . . 3 Combat Hostiles 3 | . . . . . . . . . . 3 Parts Fried 2 | . . . . 1 . . . . . 1 Impact Corruptions . | . . . . . . . . . . . Robots Melted . | . . . . . . . . . . . Combat Hostiles . | . . . . . . . . . . . Parts Melted 6 | . 5 . . . 1 . . . . . Heat Transferred 1849 | . 1352 . . . . . 50 74 . 373 Parts Sabotaged . | . . . . . . . . . . . Parts Stolen . | . . . . . . . . . . . Parts Stripped . | . . . . . . . . . . . Power Chain Reactions 2 | . . . . . . . 1 . . 1 Alert | -11 -10 -10 -9 -8 -7 -6 -6 -6 -6 -6 ------- Run | Yrd Mat Min Mat Mat Fac Fac Low Low Zio Dee Peak Influence 718 | . 297 51 200 257 718 436 . . . . Initial 351 | . . 51 15 65 51 351 . . . . Average 207 | . 124 49 83 140 277 324 . . . . Maximum Alert Level 3 | . 1 . 1 1 3 2 . . . . Low Security (%) 60 | . 88 100 90 71 50 . . . . . Level 1 22 | . 11 . 9 28 12 98 . . . . Level 2 16 | . . . . . 35 1 . . . . Level 3 1 | . . . . . 2 . . . . . Level 4 . | . . . . . . . . . . . Level 5 . | . . . . . . . . . . . High Security . | . . . . . . . . . . . Max Security . | . . . . . . . . . . . Squads Dispatched 13 | . 4 . . . 8 1 . . . . Investigation 2 | . 2 . . . . . . . . . Extermination 3 | . . . . . 2 1 . . . . Reinforcement 5 | . 2 . . . 3 . . . . . Assault 1 | . . . . . 1 . . . . . Garrison 2 | . . . . . 2 . . . . . Intercept . | . . . . . . . . . . . Searches Triggered . | . . . . . . . . . . . Construction Impeded 1 | . . . . . 1 . . . . . Haulers Reinforced . | . . . . . . . . . . . Active Scanning Responses . | . . . . . . . . . . . Cargo Convoy Interrupts . | . . . . . . . . . . . Stealth | -11 -10 -10 -9 -8 -7 -6 -6 -6 -6 -6 --------- Run | Yrd Mat Min Mat Mat Fac Fac Low Low Zio Dee Distress Signals 8 | . 1 . 4 1 2 . . . . . Communications Jammed . | . . . . . . . . . . . Distress Signals . | . . . . . . . . . . . Times Spotted 171 | . 17 1 24 17 41 6 6 4 . 55 Peak Tracking Total 13 | . 4 1 4 5 7 3 3 3 . 13 Tactical Retreats 4 | . 1 . . 1 . . . . . 2 Traps | -11 -10 -10 -9 -8 -7 -6 -6 -6 -6 -6 ------- Run | Yrd Mat Min Mat Mat Fac Fac Low Low Zio Dee Traps Triggered 6 | . 1 . . . 4 1 . . . . Indirectly . | . . . . . . . . . . . Trap Hack Attempts . | . . . . . . . . . . . Triggered . | . . . . . . . . . . . Disarmed . | . . . . . . . . . . . Reprogrammed . | . . . . . . . . . . . Reused . | . . . . . . . . . . . Traps Extracted . | . . . . . . . . . . . Installed . | . . . . . . . . . . . Triggered 3 | . . . . . . . 3 . . . Machines | -11 -10 -10 -9 -8 -7 -6 -6 -6 -6 -6 ---------- Run | Yrd Mat Min Mat Mat Fac Fac Low Low Zio Dee Machines Disabled 12 | . . . . . 7 . . . 3 2 Max in Single Turn 4 | . . . . . 4 . . . 1 1 Garrison Access 2 | . . . . 1 1 . . . . . Machines Repaired . | . . . . . . . . . . . Machines Dismantled 3 | . . . . . . . . . 3 . Machines Sabotaged . | . . . . . . . . . . . Overloaded Fab Kills . | . . . . . . . . . . . Hacking | -11 -10 -10 -9 -8 -7 -6 -6 -6 -6 -6 --------- Run | Yrd Mat Min Mat Mat Fac Fac Low Low Zio Dee Machines Accessed 19 | . 3 . 5 5 3 2 . 1 . . Terminals 15 | . 3 . 5 4 1 1 . 1 . . Fabricators 2 | . . . . . 1 1 . . . . Repair Stations . | . . . . . . . . . . . Recycling Units . | . . . . . . . . . . . Scanalyzers . | . . . . . . . . . . . Garrison Access 2 | . . . . 1 1 . . . . . Total Hacks 36 | . 6 . 12 12 3 2 . 1 . . Successful 17 | . 3 . 7 2 3 1 . 1 . . Failed 18 | . 2 . 5 10 . 1 . . . . Catastrophic 3 | . . . . 2 . 1 . . . . Database Lockouts 1 | . 1 . . . . . . . . . Manual 13 | . 5 . 2 5 . 1 . . . . Terminals 30 | . 6 . 12 9 1 1 . 1 . . Fabricators 2 | . . . . . 1 1 . . . . Repair Stations . | . . . . . . . . . . . Recycling Units . | . . . . . . . . . . . Scanalyzers . | . . . . . . . . . . . Garrison Access 4 | . . . . 3 1 . . . . . Terminal Hacks 13 | . 3 . 7 1 1 . . 1 . . Record 1 | . . . . . . . . 1 . . Robot Analysis 4 | . 2 . 1 1 . . . . . . Prototype ID Bank 1 | . . . 1 . . . . . . . Alert Level 1 | . 1 . . . . . . . . . Unreport Threat 1 | . . . 1 . . . . . . . Maintenance Status 1 | . . . 1 . . . . . . . Hauler Manifests 2 | . . . 2 . . . . . . . Zone Layout 2 | . . . 1 . 1 . . . . . Fabricator Hacks 2 | . . . . . 1 1 . . . . Network Status 1 | . . . . . 1 . . . . . Build 1 | . . . . . . 1 . . . . Repair Station Hacks . | . . . . . . . . . . . Recycling Unit Hacks . | . . . . . . . . . . . Scanalyzer . | . . . . . . . . . . . Garrison Access Hacks 2 | . . . . 1 1 . . . . . Seal Access 2 | . . . . 1 1 . . . . . Unauthorized Hacks . | . . . . . . . . . . . Terminals . | . . . . . . . . . . . Fabricators . | . . . . . . . . . . . Repair Stations . | . . . . . . . . . . . Recycling Units . | . . . . . . . . . . . Scanalyzers . | . . . . . . . . . . . Garrison Access . | . . . . . . . . . . . Data Cores Recovered 1 | . . . . . 1 . . . . . Used . | . . . . . . . . . . . Hacking Detections 14 | . 2 . 4 5 1 2 . . . . Full Trace Events 1 | . 1 . . . . . . . . . Feedback Events . | . . . . . . . . . . . Feedback Blocked . | . . . . . . . . . . . Robot Schematics Acquired 3 | . . . . . . . . . 3 . Robots Built 4 | . . . . . . 4 . . . . Authchips . | . . . . . . . . . . . Time 44 | . . . . . . 44 . . . . Total Robot Build Rating 16 | . . . . . . 16 . . . . Part Schematics Acquired 15 | . . . . . . . . . 15 . Parts Built . | . . . . . . . . . . . Authchips . | . . . . . . . . . . . Time . | . . . . . . . . . . . Total Part Build Rating . | . . . . . . . . . . . Parts Repaired . | . . . . . . . . . . . Time . | . . . . . . . . . . . Parts Recycled . | . . . . . . . . . . . Recycled Matter . | . . . . . . . . . . . Retrieved Matter . | . . . . . . . . . . . Retrieved Components . | . . . . . . . . . . . Parts Scanalyzed . | . . . . . . . . . . . Part Schematics Acquired . | . . . . . . . . . . . Parts Damaged . | . . . . . . . . . . . Bothacking | -11 -10 -10 -9 -8 -7 -6 -6 -6 -6 -6 ------------ Run | Yrd Mat Min Mat Mat Fac Fac Low Low Zio Dee Used RIF Installer . | . . . . . . . . . . . Robots Hacked . | . . . . . . . . . . . Non-combat . | . . . . . . . . . . . Combat . | . . . . . . . . . . . Robot Hacks Applied . | . . . . . . . . . . . Relay Couplers Released . | . . . . . . . . . . . Fabnet Peak Effective % . | . . . . . . . . . . . Robots Rewired . | . . . . . . . . . . . Allies Hacked . | . . . . . . . . . . . Hacks Repelled . | . . . . . . . . . . . Allies | -11 -10 -10 -9 -8 -7 -6 -6 -6 -6 -6 -------- Run | Yrd Mat Min Mat Mat Fac Fac Low Low Zio Dee Total Allies 7 | . . . . . 3 4 . . . . Largest Group 6 | . . . . . 3 6 3 . . . Highest-Rated Group 110 | . . . . . 93 110 55 . . . Highest-Rated Ally 31 | . . . . . 31 31 31 . . . Total Orders . | . . . . . . . . . . . Ally Attacks 70 | . . . . . 34 36 . . . . Total Damage 982 | . . . . . 505 477 . . . . Kills 8 | . . . . . 4 4 . . . . Allies Corrupted . | . . . . . . . . . . . Allies Melted . | . . . . . . . . . . . Intel | -11 -10 -10 -9 -8 -7 -6 -6 -6 -6 -6 ------- Run | Yrd Mat Min Mat Mat Fac Fac Low Low Zio Dee Robot Analysis Total 4 | . 2 . 1 1 . . . . . . Derelict Logs Recovered 6 | . . 1 . . . . 3 1 1 . Drone Launches . | . . . . . . . . . . . Drone Recoveries . | . . . . . . . . . . . Exploration | -11 -10 -10 -9 -8 -7 -6 -6 -6 -6 -6 ------------- Run | Yrd Mat Min Mat Mat Fac Fac Low Low Zio Dee Turns Passed 11899 | . 528 233 1111 907 2906 643 1053 927 1479 2112 Spaces Moved 5054 | 1 232 71 423 484 1580 375 460 377 622 429 Core 79 | . . . . . . . . . . 79 Treads 545 | . 198 49 47 . . . . . . 251 Legs 35 | 1 34 . . . . . . . . . Wheels 4395 | . . 22 376 484 1580 375 460 377 622 99 Hover . | . . . . . . . . . . . Flight . | . . . . . . . . . . . Fastest Speed 50 | 120 120 115 115 130 150 155 160 225 210 50 Average Speed 206 | 120 154 146 206 147 166 160 213 237 222 443 Slowest Speed 1650 | 120 160 160 480 190 230 225 225 240 240 1650 Overloaded Moves . | . . . . . . . . . . . Propulsion Burnouts . | . . . . . . . . . . . Robots Hopped . | . . . . . . . . . . . Cave-ins Triggered . | . . . . . . . . . . . Exploration Rate (%) 43 | 2 43 20 36 40 41 10 66 70 80 71 Regions Visited 10 Branch Regions 5 Pre-discovered Areas 2 | . . 1 . . . . . . 1 . Known Exits Taken 5 | . . . . . 1 1 1 1 1 . Unknown Exits Taken 5 | 1 1 1 1 1 . . . . . . Scrap Searched 15 | . . . . . . . 10 2 3 . Spaces Dug 3 | . . . . . . . . 3 . . Terrain Destroyed 220 | . . . . 32 90 . 20 11 . 67 Melee . | . . . . . . . . . . . Projectile 2 | . . . . . . . . . . 2 AOE 218 | . . . . 32 90 . 20 11 . 65 Terrain Rammed . | . . . . . . . . . . . Walls Destroyed . | . . . . . . . . . . . Machines Disabled . | . . . . . . . . . . . Actions | -11 -10 -10 -9 -8 -7 -6 -6 -6 -6 -6 --------- Run | Yrd Mat Min Mat Mat Fac Fac Low Low Zio Dee Total 6003 | . 326 187 561 603 1783 409 511 396 664 563 Wait 385 | . 32 107 52 47 71 16 17 3 . 40 Move 5044 | . 231 70 422 483 1579 374 459 376 621 429 Hop . | . . . . . . . . . . . Pick Up 54 | . 7 1 16 12 11 2 . 3 2 . Fast Attach 28 | . 5 . 7 3 6 3 2 . 1 1 Attach 42 | . 3 1 4 5 6 3 2 . 6 12 Detach 10 | . 1 . . . 2 1 . . 4 2 Swap 26 | . . . 2 4 9 1 5 3 2 . Drop 42 | . 6 . 9 7 15 2 . . 1 2 Fire 309 | . 39 8 48 42 68 6 11 11 . 76 Melee . | . . . . . . . . . . . Ram 2 | . . . . . . . 1 . . 1 Kick . | . . . . . . . . . . . Crush 3 | . 2 . 1 . . . . . . . Escape Stasis 16 | . . . . . 16 . . . . . Rewire 15 | . . . . . . 1 14 . . . Trap . | . . . . . . . . . . . Miscellaneous 27 | . . . . . . . . . 27 . Route ------- -11/Scrapyard -10/Materials -10/Mines -9/Materials -8/Materials -7/Factory -6/Factory -6/Lower Caves -6/Lower Caves (discovered 2 exits: *Fac / *Zio) -6/Zion -6/Deep Caves (discovered 1 exit: *Pro) History --------- Turn | Location | Event 1 | -11/Scrapyard | Discovered new exit (range 0) 1 | -11/Scrapyard | Entered Materials 268 | -10/Materials | Central database locked down 304 | -10/Materials | Build established: Mutant 432 | -10/Materials | Discovered new exit (range 16) 529 | -10/Materials | Entered Mines 534 | -10/Mines | Assembled infested the area 587 | -10/Mines | Met a Derelict bent on vengeance 740 | -10/Mines | Discovered new exit (range 7) 754 | -10/Mines | Learned location of Zion (-6) 762 | -10/Mines | Entered Materials 762 | -9/Materials | Evolved 2 slots: Utility x2 1826 | -9/Materials | Discovered new exit (range 15) 1873 | -9/Materials | Entered another Materials area 1873 | -8/Materials | Evolved 2 slots: Propulsion x1, Utility x1 2725 | -8/Materials | Discovered new exit (range 15) 2780 | -8/Materials | Entered Factory 2780 | -7/Factory | Evolved 2 slots: Utility x1, Weapon x1 3080 | -7/Factory | Build established: Skirmisher 4282 | -7/Factory | Destroyed 11 combat bots 5129 | -7/Factory | Allied Derelicts emerged from ambush trap array 5180 | -7/Factory | First assault squad dispatched 5575 | -7/Factory | Garrison activated, responded to threat 5663 | -7/Factory | Discovered new exit (range 16) 5684 | -7/Factory | Identified exit to Factory 5686 | -7/Factory | Entered another Factory area 5686 | -6/Factory | Accompanied by 2 allies 5686 | -6/Factory | Evolved 2 slots: Utility x2 5881 | -6/Factory | Lost 3 parts (1p1n1u) 5969 | -6/Factory | Fabricated S-27 Virus? 6112 | -6/Factory | Lost 3 allies 6287 | -6/Factory | Found Prototype Launcher 6287 | -6/Factory | Identified Scatter Rocket Array 6318 | -6/Factory | Discovered new exit (range 3) 6321 | -6/Factory | Identified exit to Lower Caves 6329 | -6/Factory | Entered Lower Caves 6329 | -6/Lower Caves | Accompanied by 3 allies 6367 | -6/Lower Caves | Build established: Tank 6486 | -6/Lower Caves | Lost 3 allies 7220 | -6/Lower Caves | Learned Factory terminal intel 7272 | -6/Lower Caves | Identified exit to Lower Caves 7382 | -6/Lower Caves | Entered another Lower Caves area 7416 | -6/Lower Caves | Encountered a Warlord checkpoint 7419 | -6/Lower Caves | Discovered new exit (range 15) 7449 | -6/Lower Caves | Identified exit to Factory 8266 | -6/Lower Caves | Discovered new exit (range 5) 8278 | -6/Lower Caves | Identified exit to Zion 8292 | -6/Lower Caves | Learned Factory stockpile data 8309 | -6/Lower Caves | Entered Zion 8475 | -6/Zion | System corruption cleaned by Quarantine Array 8918 | -6/Zion | Learned location of Armory (-3) 8965 | -6/Zion | Found CR-A16's Pointy Stick 9295 | -6/Zion | Learned location of 1 exit from Factory 9773 | -6/Zion | Discovered new exit (range 5) 9776 | -6/Zion | Saw the warning signs outside the Deep Caves entrance 9783 | -6/Zion | Identified exit to Deep Caves 9788 | -6/Zion | Entered Deep Caves 10028 | -6/Deep Caves | Attacked by Z-Imprinter 10092 | -6/Deep Caves | Destroyed Z-Imprinter 10114 | -6/Deep Caves | Lost 10 parts (2n4u4w) 10171 | -6/Deep Caves | Z-Facility disabled 10333 | -6/Deep Caves | Build established: Mutant 10757 | -6/Deep Caves | Discovered new exit (range 6) 10777 | -6/Deep Caves | Identified exit to Proximity Caves 11075 | -6/Deep Caves | Spotted AG-44143 11094 | -6/Deep Caves | Destroyed AG-44143 11125 | -6/Deep Caves | Build established: Gunner 11225 | -6/Deep Caves | Spotted AG-53542 11246 | -6/Deep Caves | Destroyed AG-53542 11274 | -6/Deep Caves | Lost 3 parts (1n1u1w) 11521 | -6/Deep Caves | Build established: Mutant 11832 | -6/Deep Caves | Triggered Deep Caves wall 11847 | -6/Deep Caves | Core integrity fell below 50% 11867 | -6/Deep Caves | Spotted AS-24509 11882 | -6/Deep Caves | Core integrity fell below 20% 11893 | -6/Deep Caves | Destroyed 36 combat bots 11898 | -6/Deep Caves | Spotted AG-88851 11900 | -6/Deep Caves | Destroyed by AG-88851 with Assembled Focal Cannon Last Messages --------------- 11850_ as-22365 destroyed. 11852_ Adv. Targeting Computer destroyed. 11853_ as-19023 destroyed. [Achievement: Boltbath] 11853_ Destroyed Asb. Hover System. 11853_ Destroyed Asb. Shotgun. 11859_ Acquired 12 matter. 11861_ Acquired 5 matter. 11862_ Acquired 2 matter. 11872_ as-62412 destroyed. 11872_ Hvy. Ion Cannon destroyed. 11874_ Scatter Rocket Array destroyed. 11875_ Slammed into as-35256. 11876_ Critical hit (Burn: +80). 11877_ System corrupted: Energy discharge (-7). 11878_ as-38159 released from Mobile Assembly Unit. 11879_ Imp. EM Shotgun destroyed. 11882_ Acquired 13 matter. 11888_ Penetrated by Slug. 11892_ System corrupted: Weapon Cycler fused. Map ----- +----------------------------------------------------+ | ? # ? ??????????????????????????????????????#### | | # ??##??????????????????????????????????# | | # ?? #????????????????????????? ?????????# | | ?? #????????????????? ????? ????????# | | ?? #????????????????? ??? ???????## | | ## #????????????????? ?? ?????### | | # ####?????????????? ??# ????## | | ??????????????? ??# #????# | | ???????????????? #??# #????# | | ????????????????? #??# #????# | | "##??????????????## #??# #???## | | ???????????????# ???# #???# | | "####?????????????# ???# #???# | | #?# #?????????????# ??### #???## | | ### ####?###??????# #?## #????## | | # #?# ####??# ### #?????# | | ###### ##?# ## ##???## | | #### ### ##### | | * ## | | * #### ### ### | | ##?# ##?####?### | | * #?## #?????????## | | [[ #??## ### G##???##?????# # | | [* #???##??# #### #????## ## | | = = #???##?## ##??## ##? | | [ / #??## ## @#### ##?# #?? | | = #??# #??# ### ### | | / #??# ### ### | | ##?## ### | | / #??#### ### ## | | =][ #?????## a #?# ##? | | ]![ #??????## ##?## ##?? | | [[ #########a a ##???## ##??? | | ! ## a #???### ##???? | | ## #### #???? | | ! ! [ ##?# # #???? | | ### #???# ##> # ###???? | | #### #?????#########?????? | | ""#?# #???????????????????? | | # # ###?# #???????????????????? | | #### ## ## ##???## ##???????????????????? | | ##???# ## ####?????##### ##????????????????????? | | ?????#### #?????????????###?????????????????????? | | #?????????#??????????????????????????????????????? | | | | | | | | | | | | | +----------------------------------------------------+ Best States ------------- Heat Dissipation 64 Energy Generation 17 Energy Capacity 300 Matter Stores 400 Matter Capacity 400 Sight Range 16 Robot Scan Range 16 Terrain Scan Density 10 Armor Coverage 525 Resistance: KI 20 Core Shielding 20 Weapon Cycling 15 Evasion (%) 55 Targeting Accuracy 8 Recoil Reduction 2 Item Schematics ----------------- Thermal Shield | -6/Zion | Archive Imp. Remote Datajack | -6/Zion | Archive Nuclear Pulse Thruster | -6/Zion | Archive Adv. Plasma Cannon | -6/Zion | Archive Arm. Leg | -6/Zion | Archive Mni. Drone Bay | -6/Zion | Archive Imp. Heavy Armor Plating | -6/Zion | Archive Adv. Reaction Control System | -6/Zion | Archive Imp. Coolant Injector | -6/Zion | Archive Proton Cannon | -6/Zion | Archive Imp. Remote Shield | -6/Zion | Archive Adv. Cooling System | -6/Zion | Archive Matter Compressor | -6/Zion | Archive Lgt. Fission Core | -6/Zion | Archive Adv. System Shield | -6/Zion | Archive Robot Schematics ------------------ K-01 Serf | -6/Zion | Archive E-15 Imp | -6/Zion | Archive G-50 Soldier | -6/Zion | Archive Fabricated ------------ S-27 Virus | x4 | -6/Factory | Preloaded Alien Tech Used ----------------- None Achievements -------------- Boltbath Killing Spree Challenges ------------ None Game ------ Seed ThunderCoilHammer Manual? 0 Play Time 00:52:33 Cumulative 152.9 hours Start 2024.11.09 @ 19:19:17 End 2024.11.09 @ 20:23:37 Sessions 1 Manual Loads 0 Difficulty Rogue Special Mode None Game No. 253 Rogue 252 Adventurer 1 Explorer 0 Win Type - Total 2 Types 2/0/0/0/0/0/0/0/0 Lore% 74 Gallery% 71 Achievement% 53 Wizard Run 0 Options --------- Layout 1 ASCII 0 Keyboard 0 Movement Mouse Keybinds 0 Fullscreen 2 Font 20/SmallcapsGlow Map View 54x42 Zoom Use 0% Tactical HUD 1 Map Filters NONE Filters NONE Steam 0 RUN: 92e464af-5a33-4c75-9bd6-8be602bbe09b